[Event "Live Chess"]
[Site "Chess.com"]
[Date "2023.05.21"]
[Round "-"]
[White "seabuck"]
[Black "jbooth"]
[Result "1/2-1/2"]
[WhiteElo "1889"]
[BlackElo "1681"]
[TimeControl "300"]
[EndTime "23:21:00 PDT"]
[Termination "Game drawn by agreement"]

1. d4 {[%clk 0:04:58.3]} 1... d6 {[%clk 0:04:56.6]} 2. c4 {[%clk 0:04:57.1]}
2... Nf6 {[%clk 0:04:55.1]} 3. Nc3 {[%clk 0:04:56.1]} 3... g6 {[%clk 0:04:50.2]}
4. e4 {[%clk 0:04:54.7]} 4... Bg7 {[%clk 0:04:49.6]} 5. Be2 {[%clk 0:04:53.7]}
5... O-O {[%clk 0:04:48.3]} 6. Nf3 {[%clk 0:04:52.9]} 6... Nc6 {[%clk
0:04:47.1]} 7. O-O {[%clk 0:04:51.4]} 7... e5 {[%clk 0:04:45.7]} 8. dxe5 {[%clk
0:04:49.8]} 8... dxe5 {[%clk 0:04:41.6]} 9. Be3 {[%clk 0:04:44.9]} 9... Bg4
{[%clk 0:04:33.5]} 10. h3 {[%clk 0:04:19]} 10... Bxf3 {[%clk 0:04:31.4]} 11.
Bxf3 {[%clk 0:04:18.2]} 11... Nd4 {[%clk 0:04:29.1]} 12. Nd5 {[%clk 0:04:10]}
12... c6 {[%clk 0:04:26.5]} 13. Nxf6+ {[%clk 0:04:02]} 13... Bxf6 {[%clk
0:04:23.1]} 14. Qd2 {[%clk 0:03:55.6]} 14... Nxf3+ {[%clk 0:04:20.7]} 15. gxf3
{[%clk 0:03:51.6]} 15... Qc8 {[%clk 0:04:17]} 16. Kg2 {[%clk 0:03:40.7]} 16...
Qc7 {[%clk 0:04:15.2]} 17. Rfd1 {[%clk 0:03:32.4]} 17... Rad8 {[%clk 0:04:14]}
18. Qc2 {[%clk 0:03:28.6]} 18... b6 {[%clk 0:04:02.3]} 19. a3 {[%clk 0:03:22.6]}
19... a5 {[%clk 0:03:59.5]} 20. b4 {[%clk 0:03:19]} 20... axb4 {[%clk
0:03:55.9]} 21. axb4 {[%clk 0:03:17.3]} 21... Rxd1 {[%clk 0:03:55.3]} 22. Rxd1
{[%clk 0:03:14.7]} 22... Rd8 {[%clk 0:03:53.7]} 23. Rd3 {[%clk 0:03:02.5]} 23...
Be7 {[%clk 0:03:43.9]} 24. c5 {[%clk 0:02:37.2]} 24... bxc5 {[%clk 0:03:37.9]}
25. Bxc5 {[%clk 0:02:34.7]} 25... Bxc5 {[%clk 0:03:31.7]} 26. Rxd8+ {[%clk
0:02:26.7]} 26... Qxd8 {[%clk 0:03:29]} 27. Qxc5 {[%clk 0:02:24.1]} 27... Qe8
{[%clk 0:03:22.9]} 28. Qd6 {[%clk 0:02:15.4]} 28... Qe6 {[%clk 0:03:08]} 29.
Qxe6 {[%clk 0:02:06.4]} 29... fxe6 {[%clk 0:03:06.6]} 30. Kg3 {[%clk 0:02:03.9]}
30... Kf7 {[%clk 0:03:01.7]} 31. f4 {[%clk 0:02:01]} 31... Kf6 {[%clk
0:02:59.6]} 32. h4 {[%clk 0:01:51.3]} 32... h5 {[%clk 0:02:56.9]} 33. Kf3 {[%clk
0:01:48.4]} 33... exf4 {[%clk 0:02:52.1]} 34. Kxf4 {[%clk 0:01:47.4]} 34... e5+
{[%clk 0:02:51]} 35. Kg3 {[%clk 0:01:40.8]} 35... g5 {[%clk 0:02:48.7]} 36. f3
{[%clk 0:01:31.2]} 36... Kg6 {[%clk 0:02:43.3]} 37. Kh3 {[%clk 0:01:26.3]} 37...
Kf6 {[%clk 0:02:38.9]} 38. Kg3 {[%clk 0:01:24.5]} 38... Kg6 {[%clk 0:02:37.4]}
39. Kh3 {[%clk 0:01:23.7]} 1/2-1/2

[Event "Live Chess"]
[Site "Chess.com"]
[Date "2023.05.21"]
[Round "-"]
[White "MarkLim1"]
[Black "Ninifu"]
[Result "0-1"]
[WhiteElo "1661"]
[BlackElo "2024"]
[TimeControl "300"]
[EndTime "23:21:12 PDT"]
[Termination "Ninifu won by checkmate"]

1. d4 {[%clk 0:04:59.3]} 1... Nf6 {[%clk 0:04:58.2]} 2. Nf3 {[%clk 0:04:58.4]}
2... g6 {[%clk 0:04:57.3]} 3. c4 {[%clk 0:04:57.3]} 3... Bg7 {[%clk 0:04:56.6]}
4. Nc3 {[%clk 0:04:56.4]} 4... O-O {[%clk 0:04:56.2]} 5. e4 {[%clk 0:04:55.4]}
5... d6 {[%clk 0:04:55.7]} 6. Be2 {[%clk 0:04:54.6]} 6... e5 {[%clk 0:04:54.7]}
7. d5 {[%clk 0:04:53.7]} 7... a5 {[%clk 0:04:53.2]} 8. O-O {[%clk 0:04:52.4]}
8... Na6 {[%clk 0:04:52.5]} 9. Bg5 {[%clk 0:04:51.1]} 9... h6 {[%clk 0:04:49]}
10. Bh4 {[%clk 0:04:49.2]} 10... Qe8 {[%clk 0:04:46.9]} 11. Nd2 {[%clk
0:04:47.9]} 11... Bd7 {[%clk 0:04:46.1]} 12. Kh1 {[%clk 0:04:47]} 12... Nh7
{[%clk 0:04:42]} 13. b3 {[%clk 0:04:44.6]} 13... f5 {[%clk 0:04:40.6]} 14. f3
{[%clk 0:04:43.4]} 14... g5 {[%clk 0:04:27.3]} 15. Bf2 {[%clk 0:04:41.6]} 15...
f4 {[%clk 0:04:14.3]} 16. a3 {[%clk 0:04:38.3]} 16... Nf6 {[%clk 0:04:09.5]} 17.
Rb1 {[%clk 0:04:36.8]} 17... Qh5 {[%clk 0:04:04.7]} 18. b4 {[%clk 0:04:31.9]}
18... axb4 {[%clk 0:03:59.2]} 19. axb4 {[%clk 0:04:30.5]} 19... Rf7 {[%clk
0:03:49]} 20. c5 {[%clk 0:04:18.8]} 20... Bf8 {[%clk 0:03:47.9]} 21. cxd6 {[%clk
0:03:49.5]} 21... Bxd6 {[%clk 0:03:40.5]} 22. b5 {[%clk 0:03:40.9]} 22... Nc5
{[%clk 0:03:37.7]} 23. b6 {[%clk 0:03:37.6]} 23... g4 {[%clk 0:02:51]} 24. fxg4
{[%clk 0:03:28.8]} 24... Bxg4 {[%clk 0:02:43.9]} 25. Bxg4 {[%clk 0:03:25.6]}
25... Nxg4 {[%clk 0:02:41]} 26. Bg1 {[%clk 0:03:07.1]} 26... Qg6 {[%clk
0:02:15.5]} 27. bxc7 {[%clk 0:03:01.2]} 27... Rg7 {[%clk 0:02:13.1]} 28. Nb5
{[%clk 0:02:27.5]} 28... Ne3 {[%clk 0:02:09.3]} 29. Qe2 {[%clk 0:02:17.4]} 29...
Rc8 {[%clk 0:01:38.2]} 30. Rf2 {[%clk 0:02:09.6]} 30... Bxc7 {[%clk 0:01:27.2]}
31. Nxc7 {[%clk 0:01:47.8]} 31... Rcxc7 {[%clk 0:01:24.7]} 32. Rb4 {[%clk
0:01:34.6]} 32... Ng4 {[%clk 0:00:55.4]} 33. Rf3 {[%clk 0:01:21.8]} 33... b6
{[%clk 0:00:50.9]} 34. h3 {[%clk 0:00:50.7]} 34... Ne3 {[%clk 0:00:48.9]} 35.
Bxe3 {[%clk 0:00:39]} 35... fxe3 {[%clk 0:00:47.7]} 36. Rxe3 {[%clk 0:00:37.5]}
36... Nd7 {[%clk 0:00:38.8]} 37. Rc4 {[%clk 0:00:20.9]} 37... Rxc4 {[%clk
0:00:36.7]} 38. Nxc4 {[%clk 0:00:19.8]} 38... b5 {[%clk 0:00:35]} 39. Nb2 {[%clk
0:00:14.2]} 39... Nc5 {[%clk 0:00:32.5]} 40. Nd3 {[%clk 0:00:10.6]} 40... Nd7
{[%clk 0:00:28.3]} 41. Nf2 {[%clk 0:00:08.9]} 41... Qxg2# {[%clk 0:00:26.8]} 0-1

[Event "Live Chess"]
[Site "Chess.com"]
[Date "2023.05.21"]
[Round "-"]
[White "profpirate4"]
[Black "raminguy"]
[Result "1-0"]
[WhiteElo "1259"]
[BlackElo "1923"]
[TimeControl "300"]
[EndTime "23:21:30 PDT"]
[Termination "profpirate4 won by checkmate"]

1. d4 {[%clk 0:04:57.4]} 1... d5 {[%clk 0:04:58.9]} 2. c4 {[%clk 0:04:56.2]}
2... e6 {[%clk 0:04:58.3]} 3. Nc3 {[%clk 0:04:54.5]} 3... a6 {[%clk 0:04:57.6]}
4. e3 {[%clk 0:04:50.9]} 4... Nf6 {[%clk 0:04:55.8]} 5. cxd5 {[%clk 0:04:49.6]}
5... exd5 {[%clk 0:04:54.9]} 6. Bd3 {[%clk 0:04:47.2]} 6... Be7 {[%clk
0:04:53.4]} 7. Qc2 {[%clk 0:04:46.2]} 7... O-O {[%clk 0:04:52.1]} 8. Nf3 {[%clk
0:04:45.3]} 8... Nbd7 {[%clk 0:04:50.8]} 9. O-O {[%clk 0:04:44.1]} 9... c6
{[%clk 0:04:49.9]} 10. Bd2 {[%clk 0:04:39.1]} 10... Re8 {[%clk 0:04:45.6]} 11.
Rfe1 {[%clk 0:04:37.9]} 11... h6 {[%clk 0:04:40.4]} 12. Rac1 {[%clk 0:04:35.9]}
12... Nf8 {[%clk 0:04:37.3]} 13. Ne5 {[%clk 0:04:32.1]} 13... Bd6 {[%clk
0:04:35.8]} 14. e4 {[%clk 0:04:28]} 14... dxe4 {[%clk 0:04:32.1]} 15. Nxe4
{[%clk 0:04:24.9]} 15... Nxe4 {[%clk 0:04:30.6]} 16. Bxe4 {[%clk 0:04:22.5]}
16... Bb8 {[%clk 0:03:52.3]} 17. Re3 {[%clk 0:03:51]} 17... Qxd4 {[%clk
0:03:40.4]} 18. Bc3 {[%clk 0:03:38]} 18... Qc5 {[%clk 0:03:18.8]} 19. Rg3 {[%clk
0:03:19.1]} 19... Bxe5 {[%clk 0:02:51.5]} 20. Bxe5 {[%clk 0:03:16.2]} 20... Qxe5
{[%clk 0:02:49.3]} 21. Re1 {[%clk 0:03:12.2]} 21... Bf5 {[%clk 0:02:42.1]} 22.
Rge3 {[%clk 0:03:05.5]} 22... Bxe4 {[%clk 0:02:10.8]} 23. Rxe4 {[%clk
0:03:03.7]} 23... Qf5 {[%clk 0:01:57.6]} 24. g4 {[%clk 0:02:53.3]} 24... Qg6
{[%clk 0:01:49.7]} 25. Qa4 {[%clk 0:02:34.1]} 25... Rxe4 {[%clk 0:01:45.1]} 26.
Qxe4 {[%clk 0:02:30.3]} 26... Re8 {[%clk 0:01:42.1]} 27. Qxe8 {[%clk 0:02:27]}
27... Qxg4+ {[%clk 0:01:40.2]} 28. Kf1 {[%clk 0:02:22.7]} 28... Qc4+ {[%clk
0:01:37.8]} 29. Qe2 {[%clk 0:02:19.8]} 29... Qxa2 {[%clk 0:01:36.8]} 30. Qe7
{[%clk 0:02:06.1]} 30... Qc4+ {[%clk 0:01:32.3]} 31. Kg1 {[%clk 0:02:04.7]}
31... Qg4+ {[%clk 0:01:30.3]} 32. Kh1 {[%clk 0:02:02.5]} 32... Qf3+ {[%clk
0:01:28.7]} 33. Kg1 {[%clk 0:02:01.2]} 33... c5 {[%clk 0:01:22.6]} 34. Qxc5
{[%clk 0:01:55.1]} 34... Ne6 {[%clk 0:01:19.5]} 35. Qc8+ {[%clk 0:01:50.1]}
35... Kh7 {[%clk 0:01:17.9]} 36. Qc2+ {[%clk 0:01:46.2]} 36... f5 {[%clk
0:01:16.3]} 37. Re3 {[%clk 0:01:39.5]} 37... Qg4+ {[%clk 0:01:07.1]} 38. Rg3
{[%clk 0:01:37.6]} 38... Qf4 {[%clk 0:01:00.4]} 39. Qc3 {[%clk 0:01:09.3]} 39...
Ng5 {[%clk 0:00:53.9]} 40. h4 {[%clk 0:01:03.4]} 40... Qxh4 {[%clk 0:00:50.9]}
41. Kg2 {[%clk 0:00:52.4]} 41... Qe4+ {[%clk 0:00:45.2]} 42. Kf1 {[%clk
0:00:49]} 42... b5 {[%clk 0:00:40.4]} 43. Re3 {[%clk 0:00:44.1]} 43... Qh1+
{[%clk 0:00:32]} 44. Ke2 {[%clk 0:00:42.8]} 44... Qh5+ {[%clk 0:00:31.4]} 45. f3
{[%clk 0:00:39.8]} 45... Qh2+ {[%clk 0:00:29.6]} 46. Kd3 {[%clk 0:00:37.9]}
46... Qd6+ {[%clk 0:00:28.3]} 47. Ke2 {[%clk 0:00:36.4]} 47... b4 {[%clk
0:00:23.9]} 48. Qd3 {[%clk 0:00:34.5]} 48... Qh2+ {[%clk 0:00:21.9]} 49. Kd1
{[%clk 0:00:31]} 49... Qg1+ {[%clk 0:00:20.8]} 50. Kc2 {[%clk 0:00:30]} 50...
Qf2+ {[%clk 0:00:15.4]} 51. Kb3 {[%clk 0:00:28.2]} 51... g6 {[%clk 0:00:04.6]}
52. Qd7+ {[%clk 0:00:25.9]} 52... Nf7 {[%clk 0:00:01.4]} 53. Qxf7+ {[%clk
0:00:24.1]} 53... Kh8 {[%clk 0:00:00.8]} 54. Re8# {[%clk 0:00:22.9]} 1-0

[Event "Live Chess"]
[Site "Chess.com"]
[Date "2023.05.21"]
[Round "-"]
[White "LutherSullivan"]
[Black "Mikhail_Golubev"]
[Result "1-0"]
[WhiteElo "2207"]
[BlackElo "2491"]
[TimeControl "300"]
[EndTime "23:21:34 PDT"]
[Termination "LutherSullivan won by resignation"]

1. e4 {[%clk 0:04:55.5]} 1... c5 {[%clk 0:04:58.9]} 2. Nf3 {[%clk 0:04:53.5]}
2... d6 {[%clk 0:04:57.9]} 3. d4 {[%clk 0:04:51.9]} 3... cxd4 {[%clk 0:04:55.5]}
4. Nxd4 {[%clk 0:04:51.6]} 4... Nf6 {[%clk 0:04:54.6]} 5. Nc3 {[%clk 0:04:50.9]}
5... g6 {[%clk 0:04:53.8]} 6. Be3 {[%clk 0:04:50.4]} 6... Bg7 {[%clk 0:04:52.9]}
7. f3 {[%clk 0:04:49.7]} 7... Nc6 {[%clk 0:04:52]} 8. Qd2 {[%clk 0:04:49]} 8...
O-O {[%clk 0:04:51.5]} 9. O-O-O {[%clk 0:04:48]} 9... d5 {[%clk 0:04:50.8]} 10.
exd5 {[%clk 0:04:47.2]} 10... Nxd5 {[%clk 0:04:50.7]} 11. Nxc6 {[%clk
0:04:45.3]} 11... bxc6 {[%clk 0:04:49.6]} 12. Bd4 {[%clk 0:04:44.8]} 12... e5
{[%clk 0:04:48.4]} 13. Bc5 {[%clk 0:04:44.4]} 13... Re8 {[%clk 0:04:46]} 14. Ne4
{[%clk 0:04:43.7]} 14... Qc7 {[%clk 0:04:44.2]} 15. Bc4 {[%clk 0:04:25.3]} 15...
Be6 {[%clk 0:04:37.6]} 16. h4 {[%clk 0:04:06.8]} 16... Rad8 {[%clk 0:03:48.6]}
17. Bb3 {[%clk 0:03:58.6]} 17... a5 {[%clk 0:02:06.5]} 18. h5 {[%clk 0:03:50.6]}
18... Nf4 {[%clk 0:01:27]} 19. Bd6 {[%clk 0:03:40.1]} 19... Qb6 {[%clk
0:00:44.2]} 20. hxg6 {[%clk 0:03:35.5]} 20... hxg6 {[%clk 0:00:41.6]} 21. g3
{[%clk 0:03:32]} 21... Nd5 {[%clk 0:00:17.2]} 22. Qh2 {[%clk 0:03:22.5]} 22...
Rxd6 {[%clk 0:00:15.3]} 23. Nxd6 {[%clk 0:03:17]} 23... Rb8 {[%clk 0:00:14.8]}
24. Nc4 {[%clk 0:02:58.6]} 24... Qc5 {[%clk 0:00:13.9]} 25. a4 {[%clk
0:02:54.8]} 25... e4 {[%clk 0:00:12]} 26. fxe4 {[%clk 0:02:46.4]} 26... Ne3
{[%clk 0:00:10.9]} 27. Nxe3 {[%clk 0:02:35.2]} 27... Qxe3+ {[%clk 0:00:09]} 28.
Kb1 {[%clk 0:02:32.6]} 28... Bxb3 {[%clk 0:00:08.1]} 29. cxb3 {[%clk 0:02:26.3]}
29... Rxb3 {[%clk 0:00:08]} 30. Rd8+ {[%clk 0:02:22.7]} 1-0

[Event "Live Chess"]
[Site "Chess.com"]
[Date "2023.05.21"]
[Round "-"]
[White "YrrriKharkiv"]
[Black "AlanPaling"]
[Result "1-0"]
[WhiteElo "2034"]
[BlackElo "1363"]
[TimeControl "300"]
[EndTime "23:21:59 PDT"]
[Termination "YrrriKharkiv won by checkmate"]

1. d4 {[%clk 0:04:55.1]} 1... e5 {[%clk 0:04:58.2]} 2. dxe5 {[%clk 0:04:53.7]}
2... Nc6 {[%clk 0:04:57.8]} 3. Nf3 {[%clk 0:04:52.6]} 3... Qe7 {[%clk
0:04:57.1]} 4. Qd5 {[%clk 0:04:49.2]} 4... b6 {[%clk 0:04:55.8]} 5. e4 {[%clk
0:04:40.4]} 5... Bb7 {[%clk 0:04:52.6]} 6. Nc3 {[%clk 0:04:35.3]} 6... Nb4
{[%clk 0:04:43.2]} 7. Qb3 {[%clk 0:04:30.6]} 7... a5 {[%clk 0:04:33.2]} 8. a3
{[%clk 0:04:28.6]} 8... Na6 {[%clk 0:04:25.6]} 9. Nd5 {[%clk 0:04:21.4]} 9...
Qd8 {[%clk 0:04:01.9]} 10. Bg5 {[%clk 0:03:57.6]} 10... Qc8 {[%clk 0:03:53.5]}
11. Bc4 {[%clk 0:03:31.8]} 11... Nc5 {[%clk 0:03:49.7]} 12. Qe3 {[%clk
0:03:30.5]} 12... h6 {[%clk 0:03:42]} 13. Bh4 {[%clk 0:03:27]} 13... g5 {[%clk
0:03:19.2]} 14. Bg3 {[%clk 0:03:16.4]} 14... Ne6 {[%clk 0:03:09.4]} 15. O-O
{[%clk 0:03:02.3]} 15... Bc5 {[%clk 0:03:07.5]} 16. Qd2 {[%clk 0:02:58.3]} 16...
Ne7 {[%clk 0:03:00.6]} 17. b4 {[%clk 0:02:51.9]} 17... axb4 {[%clk 0:02:53.9]}
18. axb4 {[%clk 0:02:50.2]} 18... Rxa1 {[%clk 0:02:47.1]} 19. Rxa1 {[%clk
0:02:46.9]} 19... Bxf2+ {[%clk 0:02:33]} 20. Qxf2 {[%clk 0:02:34.1]} 20... Nxd5
{[%clk 0:02:28.5]} 21. exd5 {[%clk 0:02:32.5]} 21... Nf4 {[%clk 0:02:26.9]} 22.
Bxf4 {[%clk 0:02:31.5]} 22... gxf4 {[%clk 0:02:25.1]} 23. Qh4 {[%clk 0:02:18.6]}
23... Rg8 {[%clk 0:02:13.3]} 24. Qxf4 {[%clk 0:01:42.6]} 24... d6 {[%clk
0:02:09.5]} 25. e6 {[%clk 0:01:34.2]} 25... Qd8 {[%clk 0:01:58.4]} 26. Qxf7#
{[%clk 0:01:32]} 1-0

[Event "Live Chess"]
[Site "Chess.com"]
[Date "2023.05.21"]
[Round "-"]
[White "MaximKris"]
[Black "Doge_Dandolo"]
[Result "0-1"]
[WhiteElo "1851"]
[BlackElo "1901"]
[TimeControl "300"]
[EndTime "23:22:04 PDT"]
[Termination "Doge_Dandolo won by checkmate"]

1. e4 {[%clk 0:04:59.2]} 1... c6 {[%clk 0:04:57.5]} 2. Nf3 {[%clk 0:04:57.8]}
2... d5 {[%clk 0:04:55.7]} 3. Nc3 {[%clk 0:04:57.1]} 3... Bg4 {[%clk 0:04:53.7]}
4. d4 {[%clk 0:04:51.3]} 4... dxe4 {[%clk 0:04:47.8]} 5. Nxe4 {[%clk 0:04:49.6]}
5... e6 {[%clk 0:04:46.5]} 6. h3 {[%clk 0:04:48.2]} 6... Bf5 {[%clk 0:04:44.1]}
7. Bd3 {[%clk 0:04:46.2]} 7... Nd7 {[%clk 0:04:40.4]} 8. O-O {[%clk 0:04:45]}
8... Ngf6 {[%clk 0:04:39.1]} 9. Nxf6+ {[%clk 0:04:43.9]} 9... Qxf6 {[%clk
0:04:35.5]} 10. Bxf5 {[%clk 0:04:42.6]} 10... Qxf5 {[%clk 0:04:34.3]} 11. Re1
{[%clk 0:04:39.6]} 11... Be7 {[%clk 0:04:32.5]} 12. Be3 {[%clk 0:04:35.2]} 12...
O-O {[%clk 0:04:30.5]} 13. Qd2 {[%clk 0:04:32.6]} 13... Rfd8 {[%clk 0:04:26.3]}
14. Rad1 {[%clk 0:04:05.6]} 14... Nf6 {[%clk 0:04:13.5]} 15. Qd3 {[%clk
0:04:03.1]} 15... Qxd3 {[%clk 0:04:05.9]} 16. Rxd3 {[%clk 0:04:03]} 16... Nd5
{[%clk 0:03:57.7]} 17. c4 {[%clk 0:03:59.7]} 17... Nb4 {[%clk 0:03:56.2]} 18.
Rb3 {[%clk 0:03:54.8]} 18... Rd7 {[%clk 0:03:49]} 19. a3 {[%clk 0:03:45.2]}
19... Na6 {[%clk 0:03:46]} 20. Ne5 {[%clk 0:03:43]} 20... Rc7 {[%clk 0:03:43]}
21. Bf4 {[%clk 0:03:41.6]} 21... Bd6 {[%clk 0:03:41.1]} 22. c5 {[%clk
0:03:38.4]} 22... Bxe5 {[%clk 0:03:39.7]} 23. Bxe5 {[%clk 0:03:38.3]} 23... Rd7
{[%clk 0:03:38.8]} 24. Bd6 {[%clk 0:03:36.9]} 24... Rad8 {[%clk 0:03:31.4]} 25.
Rc1 {[%clk 0:03:32.7]} 25... g6 {[%clk 0:03:27.2]} 26. Rc4 {[%clk 0:03:31.3]}
26... b5 {[%clk 0:03:16]} 27. Rcb4 {[%clk 0:03:20.5]} 27... Nc7 {[%clk 0:03:13]}
28. Rf3 {[%clk 0:03:08.5]} 28... Ne8 {[%clk 0:03:08.9]} 29. Be5 {[%clk
0:03:00.3]} 29... Ng7 {[%clk 0:03:03.3]} 30. a4 {[%clk 0:02:57.2]} 30... a5
{[%clk 0:03:01.3]} 31. Rxb5 {[%clk 0:02:37.5]} 31... cxb5 {[%clk 0:02:59.4]} 32.
axb5 {[%clk 0:02:37.4]} 32... Nf5 {[%clk 0:02:56.1]} 33. b6 {[%clk 0:02:34.4]}
33... Nxd4 {[%clk 0:02:53.2]} 34. Bxd4 {[%clk 0:02:32.7]} 34... Rxd4 {[%clk
0:02:51.9]} 35. c6 {[%clk 0:02:29.8]} 35... Rb4 {[%clk 0:02:50.2]} 36. b7 {[%clk
0:02:25.8]} 36... Rb8 {[%clk 0:02:41.1]} 37. c7 {[%clk 0:02:01.6]} 37... R4xb7
{[%clk 0:02:38.3]} 38. cxb8=Q+ {[%clk 0:02:00.5]} 38... Rxb8 {[%clk 0:02:37]}
39. Ra3 {[%clk 0:01:59.7]} 39... Rxb2 {[%clk 0:02:35.3]} 40. Rxa5 {[%clk
0:01:58.9]} 40... Kg7 {[%clk 0:02:34.4]} 41. f3 {[%clk 0:01:56.5]} 41... h5
{[%clk 0:02:31.9]} 42. Kh2 {[%clk 0:01:55.8]} 42... h4 {[%clk 0:02:30.2]} 43.
Ra4 {[%clk 0:01:54.4]} 43... g5 {[%clk 0:02:27.9]} 44. Rg4 {[%clk 0:01:52.8]}
44... f6 {[%clk 0:02:21.3]} 45. f4 {[%clk 0:01:39.5]} 45... Kg6 {[%clk
0:02:18.7]} 46. fxg5 {[%clk 0:01:20.3]} 46... fxg5 {[%clk 0:02:17]} 47. Ra4
{[%clk 0:01:18.4]} 47... Rb6 {[%clk 0:02:11.7]} 48. Re4 {[%clk 0:00:56.3]} 48...
Kf5 {[%clk 0:02:08.9]} 49. Re1 {[%clk 0:00:48.6]} 49... e5 {[%clk 0:02:07.7]}
50. Rf1+ {[%clk 0:00:47]} 50... Kg6 {[%clk 0:02:06.6]} 51. Re1 {[%clk
0:00:45.9]} 51... Re6 {[%clk 0:02:04.3]} 52. g4 {[%clk 0:00:44.5]} 52... e4
{[%clk 0:02:00.7]} 53. Re3 {[%clk 0:00:42.9]} 53... Kf6 {[%clk 0:01:58.5]} 54.
Kg2 {[%clk 0:00:42.1]} 54... Ke5 {[%clk 0:01:56.9]} 55. Ra3 {[%clk 0:00:40.3]}
55... Kf4 {[%clk 0:01:54.5]} 56. Ra4 {[%clk 0:00:37.3]} 56... Rd6 {[%clk
0:01:47.8]} 57. Kf2 {[%clk 0:00:32.9]} 57... Rd2+ {[%clk 0:01:46.3]} 58. Ke1
{[%clk 0:00:31.4]} 58... Rh2 {[%clk 0:01:44]} 59. Ra5 {[%clk 0:00:22]} 59...
Rxh3 {[%clk 0:01:40]} 60. Kf2 {[%clk 0:00:20.2]} 60... Rh2+ {[%clk 0:01:38.2]}
61. Kf1 {[%clk 0:00:19.4]} 61... Kxg4 {[%clk 0:01:34.4]} 62. Kg1 {[%clk
0:00:18.3]} 62... Rb2 {[%clk 0:01:32.5]} 63. Rd5 {[%clk 0:00:18.2]} 63... e3
{[%clk 0:01:29.9]} 64. Rd3 {[%clk 0:00:16.9]} 64... Kf3 {[%clk 0:01:28.6]} 65.
Rxe3+ {[%clk 0:00:16.8]} 65... Kxe3 {[%clk 0:01:26.9]} 66. Kf1 {[%clk
0:00:16.7]} 66... g4 {[%clk 0:01:24.9]} 67. Kg1 {[%clk 0:00:16.6]} 67... Kf3
{[%clk 0:01:23.9]} 68. Kh1 {[%clk 0:00:16.5]} 68... Kg3 {[%clk 0:01:23]} 69. Kg1
{[%clk 0:00:16.4]} 69... Rb1# {[%clk 0:01:22.5]} 0-1